[Event "Titled Tuesday Blitz August 02 Late 2022"]
[White "Manukian, Artak"]
[Black "Ambartsumova, Karina"]
[WhiteFideId "13301373"]
[BlackFideId "4166299"]
[WhiteElo "2451"]
[BlackElo "2262"]
[Result "1-0"]
[Round "11"]
[TimeControl "180+1"]
[Date "2022.08.02"]
[WhiteClock "0:00:14"]
[BlackClock "0:00:05"]

1. e4 {[%clk 0:02:59]}  c5 {[%clk 0:02:58]} 2. Nf3 {[%clk 0:02:56]}  e6 {[%clk 0:02:58]} 3. c3 {[%clk 0:02:56]}  d5 {[%clk 0:02:58]} 4. e5 {[%clk 0:02:56]}  d4 {[%clk 0:02:58]} 5. cxd4 {[%clk 0:02:56]}  cxd4 {[%clk 0:02:58]} 6. Bb5+ {[%clk 0:02:56]}  Bd7 {[%clk 0:02:53]} 7. Nxd4 {[%clk 0:02:56]}  Bc5 {[%clk 0:02:48]} 8. Bxd7+ {[%clk 0:02:55]}  Qxd7 {[%clk 0:02:43]} 9. Nb3 {[%clk 0:02:56]}  Bb6 {[%clk 0:02:19]} 10. d4 {[%clk 0:02:53]}  Ne7 {[%clk 0:02:15]} 11. Be3 {[%clk 0:02:53]}  Nbc6 {[%clk 0:02:12]} 12. O-O {[%clk 0:02:42]}  O-O {[%clk 0:02:10]} 13. Nc3 {[%clk 0:02:33]}  Rad8 {[%clk 0:02:07]} 14. Ne2 {[%clk 0:02:17]}  Nf5 {[%clk 0:02:01]} 15. Bg5 {[%clk 0:02:02]}  Rc8 {[%clk 0:01:57]} 16. Be3 {[%clk 0:01:56]}  h6 {[%clk 0:01:55]} 17. Qd2 {[%clk 0:01:50]}  Rfd8 {[%clk 0:01:51]} 18. Rfd1 {[%clk 0:01:49]}  Nce7 {[%clk 0:01:38]} 19. Nc3 {[%clk 0:01:44]}  Nd5 {[%clk 0:01:14]} 20. a4 {[%clk 0:01:40]}  a6 {[%clk 0:01:02]} 21. a5 {[%clk 0:01:32]}  Ba7 {[%clk 0:01:02]} 22. Qd3 {[%clk 0:01:30]}  Qe7 {[%clk 0:00:53]} 23. Rac1 {[%clk 0:01:20]}  Qb4 {[%clk 0:00:38]} 24. Nxd5 {[%clk 0:01:11]}  exd5 {[%clk 0:00:19]} 25. Rxc8 {[%clk 0:01:09]}  Rxc8 {[%clk 0:00:18]} 26. Qxf5 {[%clk 0:01:09]}  Rd8 {[%clk 0:00:17]} 27. Nc5 {[%clk 0:00:55]}  Bxc5 {[%clk 0:00:16]} 28. dxc5 {[%clk 0:00:55]}  d4 {[%clk 0:00:17]} 29. e6 {[%clk 0:00:47]}  fxe6 {[%clk 0:00:16]} 30. Qxe6+ {[%clk 0:00:47]}  Kh8 {[%clk 0:00:16]} 31. Qe7 {[%clk 0:00:42]}  Qxa5 {[%clk 0:00:08]} 32. h4 {[%clk 0:00:33]}  d3 {[%clk 0:00:06]} 33. Qe4 {[%clk 0:00:23]}  d2 {[%clk 0:00:06]} 34. b4 {[%clk 0:00:23]}  Qa2 {[%clk 0:00:06]} 35. Bd4 {[%clk 0:00:19]}  Qc4 {[%clk 0:00:04]} 36. Bxg7+ {[%clk 0:00:13]}  Kxg7 {[%clk 0:00:05]} 37. Qxc4 {[%clk 0:00:14]} 1-0


[Site "https://www.chess.com"]

[Event "Titled Tuesday Blitz August 02 Late 2022"]
[White "Martic, Ivan"]
[Black "Blanco Ronquillo, Humberto L."]
[WhiteFideId "929301"]
[BlackFideId "3504239"]
[WhiteElo "2355"]
[BlackElo "2423"]
[Result "0-1"]
[Round "11"]
[TimeControl "180+1"]
[Date "2022.08.02"]
[WhiteClock "0:00:23"]
[BlackClock "0:00:18"]

1. d4 {[%clk 0:03:00]}  d5 {[%clk 0:02:59]} 2. c4 {[%clk 0:03:00]}  c6 {[%clk 0:02:59]} 3. Nc3 {[%clk 0:02:59]}  Nf6 {[%clk 0:02:59]} 4. cxd5 {[%clk 0:02:59]}  cxd5 {[%clk 0:02:59]} 5. Bf4 {[%clk 0:02:59]}  Nc6 {[%clk 0:03:00]} 6. e3 {[%clk 0:02:58]}  Bf5 {[%clk 0:03:00]} 7. Qb3 {[%clk 0:02:56]}  Na5 {[%clk 0:02:59]} 8. Qa4+ {[%clk 0:02:53]}  Bd7 {[%clk 0:02:59]} 9. Qc2 {[%clk 0:02:53]}  Rc8 {[%clk 0:02:59]} 10. Nf3 {[%clk 0:02:52]}  e6 {[%clk 0:02:59]} 11. Bd3 {[%clk 0:02:50]}  Nc4 {[%clk 0:02:59]} 12. O-O {[%clk 0:02:47]}  Bb4 {[%clk 0:02:58]} 13. Rac1 {[%clk 0:02:45]}  O-O {[%clk 0:02:53]} 14. h3 {[%clk 0:02:44]}  Qa5 {[%clk 0:02:52]} 15. Bxc4 {[%clk 0:02:38]}  Rxc4 {[%clk 0:02:51]} 16. Ne5 {[%clk 0:02:38]}  Rcc8 {[%clk 0:02:51]} 17. Nxd7 {[%clk 0:02:34]}  Nxd7 {[%clk 0:02:52]} 18. Qb3 {[%clk 0:02:32]}  Bxc3 {[%clk 0:02:48]} 19. bxc3 {[%clk 0:02:33]}  b5 {[%clk 0:02:32]} 20. Bd6 {[%clk 0:02:28]}  Rfe8 {[%clk 0:02:31]} 21. Bb4 {[%clk 0:02:28]}  Qa6 {[%clk 0:02:16]} 22. a4 {[%clk 0:02:24]}  bxa4 {[%clk 0:02:14]} 23. Qa2 {[%clk 0:02:24]}  Qb5 {[%clk 0:02:07]} 24. Rb1 {[%clk 0:02:20]}  a5 {[%clk 0:02:02]} 25. Bd6 {[%clk 0:02:11]}  Qc6 {[%clk 0:01:55]} 26. Bf4 {[%clk 0:02:11]}  Nb6 {[%clk 0:01:53]} 27. Rfc1 {[%clk 0:02:08]}  Nc4 {[%clk 0:01:53]} 28. Ra1 {[%clk 0:01:58]}  a3 {[%clk 0:01:52]} 29. Rcb1 {[%clk 0:01:58]}  h6 {[%clk 0:01:49]} 30. Rb3 {[%clk 0:01:58]}  Qd7 {[%clk 0:01:13]} 31. Rab1 {[%clk 0:01:57]}  Qe7 {[%clk 0:01:12]} 32. Rb7 {[%clk 0:01:56]}  Qf6 {[%clk 0:01:12]} 33. Ra7 {[%clk 0:01:53]}  Re7 {[%clk 0:01:07]} 34. Ra6 {[%clk 0:01:38]}  Qf5 {[%clk 0:01:06]} 35. Rb3 {[%clk 0:01:30]}  Qd3 {[%clk 0:01:03]} 36. Kh2 {[%clk 0:01:26]}  Nd2 {[%clk 0:00:58]} 37. Rxa3 {[%clk 0:01:24]}  Nf1+ {[%clk 0:00:57]} 38. Kg1 {[%clk 0:01:23]}  Qxa6 {[%clk 0:00:58]} 39. Rxa5 {[%clk 0:01:21]}  Qd3 {[%clk 0:00:58]} 40. Ra8 {[%clk 0:01:07]}  Ree8 {[%clk 0:00:56]} 41. Ra3 {[%clk 0:01:05]}  Nd2 {[%clk 0:00:55]} 42. c4 {[%clk 0:01:06]}  Qf1+ {[%clk 0:00:52]} 43. Kh2 {[%clk 0:01:05]}  Nxc4 {[%clk 0:00:53]} 44. Ra7 {[%clk 0:01:03]}  Qd3 {[%clk 0:00:49]} 45. Qa4 {[%clk 0:00:59]}  Qf5 {[%clk 0:00:47]} 46. Qd7 {[%clk 0:00:58]}  Nd2 {[%clk 0:00:41]} 47. f3 {[%clk 0:00:57]}  Nc4 {[%clk 0:00:38]} 48. Rb7 {[%clk 0:00:54]}  Qg6 {[%clk 0:00:37]} 49. h4 {[%clk 0:00:54]}  Qf6 {[%clk 0:00:37]} 50. Kg3 {[%clk 0:00:52]}  Red8 {[%clk 0:00:36]} 51. Qa4 {[%clk 0:00:50]}  Ra8 {[%clk 0:00:36]} 52. Qb4 {[%clk 0:00:49]}  Ra2 {[%clk 0:00:34]} 53. h5 {[%clk 0:00:43]}  Qf5 {[%clk 0:00:19]} 54. Qe7 {[%clk 0:00:39]}  Rf8 {[%clk 0:00:19]} 55. Rb1 {[%clk 0:00:23]}  Qxb1 {[%clk 0:00:18]} 0-1


[Site "https://www.chess.com"]

[Event "Titled Tuesday Blitz August 02 Late 2022"]
[White "Nakamura, Hikaru"]
[Black "Chigaev, Maksim"]
[WhiteFideId "2016192"]
[BlackFideId "4108116"]
[WhiteElo "2850"]
[BlackElo "2438"]
[Result "1-0"]
[Round "11"]
[TimeControl "180+1"]
[Date "2022.08.02"]
[WhiteClock "0:00:19"]
[BlackClock "0:00:08"]

1. e4 {[%clk 0:03:00]}  e6 {[%clk 0:02:57]} 2. d3 {[%clk 0:03:00]}  d5 {[%clk 0:02:56]} 3. Nd2 {[%clk 0:03:01]}  c5 {[%clk 0:02:56]} 4. Ngf3 {[%clk 0:03:01]}  Nc6 {[%clk 0:02:56]} 5. g3 {[%clk 0:03:01]}  Nf6 {[%clk 0:02:56]} 6. Bg2 {[%clk 0:03:01]}  g6 {[%clk 0:02:57]} 7. O-O {[%clk 0:02:59]}  Bg7 {[%clk 0:02:58]} 8. c3 {[%clk 0:03:00]}  O-O {[%clk 0:02:58]} 9. e5 {[%clk 0:03:00]}  Nd7 {[%clk 0:02:55]} 10. d4 {[%clk 0:03:00]}  a5 {[%clk 0:02:52]} 11. Re1 {[%clk 0:02:56]}  cxd4 {[%clk 0:02:43]} 12. cxd4 {[%clk 0:02:56]}  f6 {[%clk 0:02:43]} 13. exf6 {[%clk 0:02:56]}  Qxf6 {[%clk 0:02:44]} 14. Qe2 {[%clk 0:02:42]}  a4 {[%clk 0:02:43]} 15. Nf1 {[%clk 0:02:32]}  Nxd4 {[%clk 0:02:25]} 16. Nxd4 {[%clk 0:02:33]}  Qxd4 {[%clk 0:02:25]} 17. Qxe6+ {[%clk 0:02:33]}  Kh8 {[%clk 0:02:25]} 18. Be3 {[%clk 0:02:32]}  Qxb2 {[%clk 0:02:20]} 19. Qxd5 {[%clk 0:02:31]}  Nf6 {[%clk 0:02:13]} 20. Qd4 {[%clk 0:02:10]}  Ng4 {[%clk 0:01:15]} 21. Qxb2 {[%clk 0:02:05]}  Bxb2 {[%clk 0:01:16]} 22. Rab1 {[%clk 0:02:06]}  Nxe3 {[%clk 0:01:15]} 23. Rxb2 {[%clk 0:02:05]}  Nxg2 {[%clk 0:01:12]} 24. Kxg2 {[%clk 0:02:06]}  a3 {[%clk 0:01:11]} 25. Rd2 {[%clk 0:02:04]}  b5 {[%clk 0:01:02]} 26. Rb1 {[%clk 0:01:56]}  Rb8 {[%clk 0:00:47]} 27. Rb4 {[%clk 0:01:53]}  Be6 {[%clk 0:00:44]} 28. Ne3 {[%clk 0:01:53]}  Rfd8 {[%clk 0:00:35]} 29. Re2 {[%clk 0:01:42]}  Kg7 {[%clk 0:00:25]} 30. g4 {[%clk 0:01:39]}  Bg8 {[%clk 0:00:20]} 31. h4 {[%clk 0:01:35]}  Rd3 {[%clk 0:00:20]} 32. Rc2 {[%clk 0:01:34]}  Rb7 {[%clk 0:00:19]} 33. Kf3 {[%clk 0:01:30]}  Be6 {[%clk 0:00:09]} 34. Ke2 {[%clk 0:01:28]}  Rd8 {[%clk 0:00:09]} 35. f4 {[%clk 0:01:27]}  Re7 {[%clk 0:00:04]} 36. Kf2 {[%clk 0:01:24]}  Rd3 {[%clk 0:00:04]} 37. Re4 {[%clk 0:01:24]}  Kf8 {[%clk 0:00:03]} 38. Ke2 {[%clk 0:01:07]}  Rd8 {[%clk 0:00:02]} 39. Kf3 {[%clk 0:01:07]}  Rd3 {[%clk 0:00:02]} 40. Ke2 {[%clk 0:01:05]}  Rd8 {[%clk 0:00:01]} 41. Re5 {[%clk 0:01:01]}  b4 {[%clk 0:00:01]} 42. Rb5 {[%clk 0:00:55]}  Bf7 {[%clk 0:00:02]} 43. Rxb4 {[%clk 0:00:54]}  Rde8 {[%clk 0:00:03]} 44. Rc3 {[%clk 0:00:54]}  Bxa2 {[%clk 0:00:03]} 45. Rxa3 {[%clk 0:00:55]}  Bf7 {[%clk 0:00:03]} 46. Kf3 {[%clk 0:00:53]}  Rc7 {[%clk 0:00:04]} 47. Rd3 {[%clk 0:00:52]}  Rec8 {[%clk 0:00:03]} 48. g5 {[%clk 0:00:48]}  Rc3 {[%clk 0:00:02]} 49. Rxc3 {[%clk 0:00:44]}  Rxc3 {[%clk 0:00:03]} 50. Ke4 {[%clk 0:00:44]}  Rc7 {[%clk 0:00:03]} 51. Rb8+ {[%clk 0:00:38]}  Kg7 {[%clk 0:00:03]} 52. f5 {[%clk 0:00:36]}  gxf5+ {[%clk 0:00:04]} 53. Nxf5+ {[%clk 0:00:36]}  Kg6 {[%clk 0:00:04]} 54. Rb6+ {[%clk 0:00:37]}  Kh5 {[%clk 0:00:04]} 55. Rh6+ {[%clk 0:00:30]}  Kg4 {[%clk 0:00:04]} 56. Ne3+ {[%clk 0:00:30]}  Kg3 {[%clk 0:00:03]} 57. h5 {[%clk 0:00:30]}  Re7+ {[%clk 0:00:02]} 58. Kf5 {[%clk 0:00:30]}  Rxe3 {[%clk 0:00:02]} 59. Rxh7 {[%clk 0:00:31]}  Rf3+ {[%clk 0:00:02]} 60. Ke5 {[%clk 0:00:31]}  Bxh5 {[%clk 0:00:02]} 61. g6 {[%clk 0:00:18]}  Bxg6 {[%clk 0:00:02]} 62. Rg7 {[%clk 0:00:19]}  Rf5+ {[%clk 0:00:03]} 63. Ke6 {[%clk 0:00:19]}  Rg5 {[%clk 0:00:03]} 64. Kf6 {[%clk 0:00:20]}  Rg4 {[%clk 0:00:03]} 65. Rg8 {[%clk 0:00:21]}  Bh5 {[%clk 0:00:03]} 66. Rb8 {[%clk 0:00:19]}  Bg6 {[%clk 0:00:04]} 67. Rb5 {[%clk 0:00:16]}  Kf4 {[%clk 0:00:04]} 68. Rb6 {[%clk 0:00:14]}  Be4 {[%clk 0:00:04]} 69. Rd6 {[%clk 0:00:14]}  Rg6+ {[%clk 0:00:05]} 70. Kf7 {[%clk 0:00:15]}  Rg7+ {[%clk 0:00:05]} 71. Kxg7 {[%clk 0:00:15]}  Ke5 {[%clk 0:00:06]} 72. Rf6 {[%clk 0:00:15]}  Kd4 {[%clk 0:00:06]} 73. Kh6 {[%clk 0:00:14]}  Bb1 {[%clk 0:00:07]} 74. Kg5 {[%clk 0:00:15]}  Kc3 {[%clk 0:00:07]} 75. Kf4 {[%clk 0:00:16]}  Kb2 {[%clk 0:00:08]} 76. Ke3 {[%clk 0:00:16]}  Ka1 {[%clk 0:00:09]} 77. Rb6 {[%clk 0:00:16]}  Ba2 {[%clk 0:00:10]} 78. Kd4 {[%clk 0:00:17]}  Bb1 {[%clk 0:00:10]} 79. Kc3 {[%clk 0:00:17]}  Ba2 {[%clk 0:00:11]} 80. Kc2 {[%clk 0:00:18]}  Bc4 {[%clk 0:00:11]} 81. Rb1+ {[%clk 0:00:18]}  Ka2 {[%clk 0:00:08]} 82. Rb4 {[%clk 0:00:19]} 1-0


[Site "https://www.chess.com"]

[Event "Titled Tuesday Blitz August 02 Late 2022"]
[White "Nazaretyan, Tigran"]
[Black "Riehle, Marco"]
[WhiteFideId "24162345"]
[BlackFideId "12904392"]
[WhiteElo "2179"]
[BlackElo "2462"]
[Result "1-0"]
[Round "11"]
[TimeControl "180+1"]
[Date "2022.08.02"]
[WhiteClock "0:01:05"]
[BlackClock "0:02:03"]

1. d4 {[%clk 0:02:59]}  d5 {[%clk 0:02:59]} 2. c4 {[%clk 0:02:57]}  e6 {[%clk 0:02:59]} 3. Nf3 {[%clk 0:02:57]}  Nf6 {[%clk 0:02:59]} 4. Nc3 {[%clk 0:02:57]}  c5 {[%clk 0:02:58]} 5. e3 {[%clk 0:02:54]}  cxd4 {[%clk 0:02:56]} 6. exd4 {[%clk 0:02:54]}  Be7 {[%clk 0:02:57]} 7. c5 {[%clk 0:02:51]}  b6 {[%clk 0:02:55]} 8. b4 {[%clk 0:02:51]}  a5 {[%clk 0:02:54]} 9. Na4 {[%clk 0:02:46]}  bxc5 {[%clk 0:02:51]} 10. bxc5 {[%clk 0:02:45]}  O-O {[%clk 0:02:51]} 11. Bd3 {[%clk 0:02:40]}  Ne4 {[%clk 0:02:51]} 12. O-O {[%clk 0:02:34]}  Nc6 {[%clk 0:02:50]} 13. Re1 {[%clk 0:02:32]}  f5 {[%clk 0:02:49]} 14. Nb6 {[%clk 0:02:28]}  Rb8 {[%clk 0:02:47]} 15. Bb5 {[%clk 0:02:27]}  Qc7 {[%clk 0:02:40]} 16. Bxc6 {[%clk 0:02:11]}  Qxc6 {[%clk 0:02:39]} 17. Bf4 {[%clk 0:02:11]}  Rxb6 {[%clk 0:02:36]} 18. cxb6 {[%clk 0:02:10]}  Qxb6 {[%clk 0:02:37]} 19. Qc2 {[%clk 0:02:03]}  Bd7 {[%clk 0:02:33]} 20. Rab1 {[%clk 0:02:01]}  Qa7 {[%clk 0:02:33]} 21. Rec1 {[%clk 0:02:00]}  Rc8 {[%clk 0:02:31]} 22. Qxc8+ {[%clk 0:01:55]}  Bxc8 {[%clk 0:02:30]} 23. Rxc8+ {[%clk 0:01:56]}  Kf7 {[%clk 0:02:31]} 24. Ne5+ {[%clk 0:01:46]}  Kf6 {[%clk 0:02:29]} 25. Nc6 {[%clk 0:01:45]}  Qa6 {[%clk 0:02:24]} 26. Be5+ {[%clk 0:01:44]}  Kf7 {[%clk 0:02:18]} 27. Rc7 {[%clk 0:01:33]}  Qe2 {[%clk 0:02:14]} 28. Rxe7+ {[%clk 0:01:32]}  Kg6 {[%clk 0:02:15]} 29. Rxg7+ {[%clk 0:01:31]}  Kh6 {[%clk 0:02:15]} 30. Rf1 {[%clk 0:01:26]}  Nd2 {[%clk 0:02:15]} 31. Ra1 {[%clk 0:01:13]}  Ne4 {[%clk 0:02:13]} 32. Ne7 {[%clk 0:01:09]}  Qxf2+ {[%clk 0:02:11]} 33. Kh1 {[%clk 0:01:09]}  f4 {[%clk 0:02:05]} 34. Ng8+ {[%clk 0:01:06]}  Kh5 {[%clk 0:02:05]} 35. Nf6+ {[%clk 0:01:06]}  Kh6 {[%clk 0:02:03]} 36. Ng4+ {[%clk 0:01:05]} 1-0


[Site "https://www.chess.com"]

[Event "Titled Tuesday Blitz August 02 Late 2022"]
[White "Prydun, Andriy"]
[Black "Shapiro, David"]
[WhiteFideId "14145898"]
[BlackFideId "24133523"]
[WhiteElo "2063"]
[BlackElo "2300"]
[Result "0-1"]
[Round "11"]
[TimeControl "180+1"]
[Date "2022.08.02"]
[WhiteClock "0:00:07"]
[BlackClock "0:02:21"]

1. e4 {[%clk 0:02:54]}  c5 {[%clk 0:03:00]} 2. Nf3 {[%clk 0:02:54]}  d6 {[%clk 0:03:00]} 3. c3 {[%clk 0:02:54]}  Nf6 {[%clk 0:02:59]} 4. h3 {[%clk 0:02:54]}  g6 {[%clk 0:02:59]} 5. Bd3 {[%clk 0:02:54]}  Bg7 {[%clk 0:02:59]} 6. Bc2 {[%clk 0:02:54]}  O-O {[%clk 0:02:59]} 7. O-O {[%clk 0:02:54]}  d5 {[%clk 0:02:59]} 8. e5 {[%clk 0:02:49]}  Nfd7 {[%clk 0:02:57]} 9. d4 {[%clk 0:02:48]}  Nc6 {[%clk 0:02:57]} 10. Be3 {[%clk 0:02:42]}  e6 {[%clk 0:02:57]} 11. Nbd2 {[%clk 0:02:33]}  a5 {[%clk 0:02:53]} 12. Re1 {[%clk 0:01:43]}  b6 {[%clk 0:02:51]} 13. g3 {[%clk 0:01:26]}  Ba6 {[%clk 0:02:51]} 14. h4 {[%clk 0:01:24]}  cxd4 {[%clk 0:02:51]} 15. cxd4 {[%clk 0:01:16]}  Nb4 {[%clk 0:02:52]} 16. h5 {[%clk 0:00:59]}  Nxc2 {[%clk 0:02:51]} 17. Qxc2 {[%clk 0:00:59]}  Rc8 {[%clk 0:02:52]} 18. Qb3 {[%clk 0:00:57]}  Qc7 {[%clk 0:02:49]} 19. h6 {[%clk 0:00:53]}  Bh8 {[%clk 0:02:47]} 20. Nh2 {[%clk 0:00:54]}  Qc2 {[%clk 0:02:45]} 21. Ng4 {[%clk 0:00:53]}  Qf5 {[%clk 0:02:35]} 22. f3 {[%clk 0:00:49]}  f6 {[%clk 0:02:35]} 23. exf6 {[%clk 0:00:48]}  Nxf6 {[%clk 0:02:34]} 24. Qxb6 {[%clk 0:00:43]}  Nxg4 {[%clk 0:02:30]} 25. fxg4 {[%clk 0:00:44]}  Qxg4 {[%clk 0:02:31]} 26. Bf2 {[%clk 0:00:38]}  Be2 {[%clk 0:02:25]} 27. Nf1 {[%clk 0:00:08]}  Rxf2 {[%clk 0:02:23]} 28. Kxf2 {[%clk 0:00:08]}  Bxd4+ {[%clk 0:02:22]} 29. Qxd4 {[%clk 0:00:06]}  Qxd4+ {[%clk 0:02:23]} 30. Kxe2 {[%clk 0:00:07]}  Rc2+ {[%clk 0:02:21]} 31. Kf3 {[%clk 0:00:07]}  Rf2# {[%clk 0:02:21]} 0-1


[Site "https://www.chess.com"]

[Event "Titled Tuesday Blitz August 02 Late 2022"]
[White "Shimanov, Aleksandr"]
[Black "Jaferian, Koosha"]
[WhiteFideId "4198603"]
[BlackFideId "12507440"]
[WhiteElo "2605"]
[BlackElo "2030"]
[Result "0-1"]
[Round "11"]
[TimeControl "180+1"]
[Date "2022.08.02"]
[WhiteClock "0:00:02"]
[BlackClock "0:00:08"]

1. e4 {[%clk 0:03:00]}  c6 {[%clk 0:03:00]} 2. Nf3 {[%clk 0:03:00]}  d5 {[%clk 0:03:00]} 3. exd5 {[%clk 0:03:00]}  cxd5 {[%clk 0:03:01]} 4. Ne5 {[%clk 0:03:01]}  a6 {[%clk 0:02:59]} 5. d4 {[%clk 0:03:00]}  Nc6 {[%clk 0:02:59]} 6. Nxc6 {[%clk 0:03:00]}  bxc6 {[%clk 0:03:00]} 7. Bd3 {[%clk 0:03:00]}  Nf6 {[%clk 0:03:00]} 8. h3 {[%clk 0:02:59]}  g6 {[%clk 0:02:59]} 9. O-O {[%clk 0:02:59]}  Bg7 {[%clk 0:02:59]} 10. Bf4 {[%clk 0:02:58]}  O-O {[%clk 0:02:57]} 11. c3 {[%clk 0:02:58]}  Qb6 {[%clk 0:02:53]} 12. Qc2 {[%clk 0:02:48]}  a5 {[%clk 0:02:51]} 13. Re1 {[%clk 0:02:46]}  e6 {[%clk 0:02:47]} 14. Nd2 {[%clk 0:02:33]}  Ba6 {[%clk 0:02:45]} 15. Bxa6 {[%clk 0:02:28]}  Qxa6 {[%clk 0:02:41]} 16. Be5 {[%clk 0:02:25]}  Nd7 {[%clk 0:02:39]} 17. Bxg7 {[%clk 0:02:21]}  Kxg7 {[%clk 0:02:40]} 18. b4 {[%clk 0:02:20]}  Nb6 {[%clk 0:02:21]} 19. a3 {[%clk 0:02:15]}  Nc4 {[%clk 0:02:20]} 20. Nb3 {[%clk 0:02:10]}  axb4 {[%clk 0:02:12]} 21. axb4 {[%clk 0:02:09]}  Qb6 {[%clk 0:01:57]} 22. Nc5 {[%clk 0:02:08]}  Ra7 {[%clk 0:01:49]} 23. Ra4 {[%clk 0:01:38]}  Rfa8 {[%clk 0:01:45]} 24. Rea1 {[%clk 0:01:37]}  Nd6 {[%clk 0:01:31]} 25. g3 {[%clk 0:00:47]}  Nb5 {[%clk 0:01:25]} 26. h4 {[%clk 0:00:41]}  Rxa4 {[%clk 0:01:24]} 27. Rxa4 {[%clk 0:00:41]}  Rxa4 {[%clk 0:01:25]} 28. Nxa4 {[%clk 0:00:42]}  Qd8 {[%clk 0:01:22]} 29. Kg2 {[%clk 0:00:41]}  Qf6 {[%clk 0:01:23]} 30. Nc5 {[%clk 0:00:38]}  h5 {[%clk 0:01:17]} 31. Nd7 {[%clk 0:00:33]}  Qf5 {[%clk 0:01:17]} 32. Qxf5 {[%clk 0:00:29]}  gxf5 {[%clk 0:01:05]} 33. Ne5 {[%clk 0:00:30]}  Na7 {[%clk 0:00:55]} 34. Kf3 {[%clk 0:00:29]}  f6 {[%clk 0:00:55]} 35. Nd7 {[%clk 0:00:29]}  Kf7 {[%clk 0:00:50]} 36. Ke3 {[%clk 0:00:27]}  Ke7 {[%clk 0:00:50]} 37. Nc5 {[%clk 0:00:28]}  Nb5 {[%clk 0:00:43]} 38. Kd2 {[%clk 0:00:27]}  Kd6 {[%clk 0:00:40]} 39. Nb7+ {[%clk 0:00:23]}  Kc7 {[%clk 0:00:36]} 40. Nc5 {[%clk 0:00:23]}  Kd6 {[%clk 0:00:37]} 41. Nd3 {[%clk 0:00:22]}  e5 {[%clk 0:00:34]} 42. dxe5+ {[%clk 0:00:16]}  fxe5 {[%clk 0:00:35]} 43. Kc2 {[%clk 0:00:16]}  Na3+ {[%clk 0:00:33]} 44. Kd2 {[%clk 0:00:15]}  Nc4+ {[%clk 0:00:34]} 45. Ke2 {[%clk 0:00:15]}  Na3 {[%clk 0:00:25]} 46. f3 {[%clk 0:00:15]}  Nb5 {[%clk 0:00:25]} 47. Kd2 {[%clk 0:00:16]}  Ke6 {[%clk 0:00:17]} 48. Nc5+ {[%clk 0:00:16]}  Kd6 {[%clk 0:00:18]} 49. Nd3 {[%clk 0:00:16]}  Ke6 {[%clk 0:00:18]} 50. Nc1 {[%clk 0:00:11]}  e4 {[%clk 0:00:11]} 51. Ne2 {[%clk 0:00:11]}  exf3 {[%clk 0:00:11]} 52. Nf4+ {[%clk 0:00:09]}  Ke5 {[%clk 0:00:12]} 53. Ke3 {[%clk 0:00:07]}  Nxc3 {[%clk 0:00:11]} 54. Kxf3 {[%clk 0:00:04]}  Na2 {[%clk 0:00:10]} 55. Nxh5 {[%clk 0:00:03]}  Nxb4 {[%clk 0:00:09]} 56. Nf4 {[%clk 0:00:03]}  c5 {[%clk 0:00:09]} 57. h5 {[%clk 0:00:03]}  c4 {[%clk 0:00:07]} 58. h6 {[%clk 0:00:02]}  Kf6 {[%clk 0:00:08]} 0-1


[Site "https://www.chess.com"]

[Event "Titled Tuesday Blitz August 02 Late 2022"]
[White "Sjugirov, Sanan"]
[Black "Naroditsky, Daniel"]
[WhiteFideId "4189302"]
[BlackFideId "2026961"]
[WhiteElo "2609"]
[BlackElo "2608"]
[Result "1/2-1/2"]
[Round "11"]
[TimeControl "180+1"]
[Date "2022.08.02"]
[WhiteClock "0:00:04"]
[BlackClock "0:00:05"]

1. e4 {[%clk 0:03:00]}  e5 {[%clk 0:02:59]} 2. Nf3 {[%clk 0:03:01]}  Nc6 {[%clk 0:03:00]} 3. Bb5 {[%clk 0:03:01]}  f5 {[%clk 0:02:59]} 4. d3 {[%clk 0:03:00]}  fxe4 {[%clk 0:02:59]} 5. dxe4 {[%clk 0:03:01]}  Nf6 {[%clk 0:02:56]} 6. O-O {[%clk 0:03:02]}  d6 {[%clk 0:02:56]} 7. Bc4 {[%clk 0:02:45]}  Bg4 {[%clk 0:02:50]} 8. Qd3 {[%clk 0:02:41]}  Na5 {[%clk 0:02:43]} 9. Bb3 {[%clk 0:01:59]}  Qd7 {[%clk 0:02:09]} 10. h3 {[%clk 0:01:51]}  Bh5 {[%clk 0:02:00]} 11. Nc3 {[%clk 0:01:41]}  Nxb3 {[%clk 0:01:54]} 12. axb3 {[%clk 0:01:41]}  Be7 {[%clk 0:01:55]} 13. Nh4 {[%clk 0:01:32]}  O-O {[%clk 0:01:50]} 14. Nf5 {[%clk 0:01:32]}  Bd8 {[%clk 0:01:39]} 15. Ng3 {[%clk 0:01:26]}  Bg6 {[%clk 0:01:38]} 16. Be3 {[%clk 0:01:23]}  c6 {[%clk 0:01:28]} 17. Qd2 {[%clk 0:01:05]}  b5 {[%clk 0:01:19]} 18. Rfd1 {[%clk 0:00:56]}  Be7 {[%clk 0:01:18]} 19. f3 {[%clk 0:00:52]}  Rfd8 {[%clk 0:01:10]} 20. Qf2 {[%clk 0:00:51]}  Qb7 {[%clk 0:01:00]} 21. b4 {[%clk 0:00:30]}  d5 {[%clk 0:00:57]} 22. Bc5 {[%clk 0:00:24]}  d4 {[%clk 0:00:56]} 23. Nce2 {[%clk 0:00:24]}  Bxc5 {[%clk 0:00:49]} 24. bxc5 {[%clk 0:00:25]}  Qe7 {[%clk 0:00:37]} 25. b4 {[%clk 0:00:22]}  Qe6 {[%clk 0:00:28]} 26. Nc1 {[%clk 0:00:19]}  Rf8 {[%clk 0:00:25]} 27. Qd2 {[%clk 0:00:17]}  h5 {[%clk 0:00:26]} 28. Nd3 {[%clk 0:00:16]}  h4 {[%clk 0:00:25]} 29. Nf1 {[%clk 0:00:16]}  Bxe4 {[%clk 0:00:09]} 30. fxe4 {[%clk 0:00:16]}  Nxe4 {[%clk 0:00:10]} 31. Qe2 {[%clk 0:00:15]}  Nc3 {[%clk 0:00:04]} 32. Qxe5 {[%clk 0:00:14]}  Qxe5 {[%clk 0:00:02]} 33. Nxe5 {[%clk 0:00:15]}  Nxd1 {[%clk 0:00:03]} 34. Rxd1 {[%clk 0:00:15]}  a5 {[%clk 0:00:02]} 35. bxa5 {[%clk 0:00:15]}  Rf5 {[%clk 0:00:02]} 36. Nxc6 {[%clk 0:00:11]}  Rxc5 {[%clk 0:00:02]} 37. Nxd4 {[%clk 0:00:10]}  b4 {[%clk 0:00:03]} 38. Nb3 {[%clk 0:00:08]}  Rxc2 {[%clk 0:00:03]} 39. Rd4 {[%clk 0:00:07]}  Rb8 {[%clk 0:00:03]} 40. Rxh4 {[%clk 0:00:06]}  Rb2 {[%clk 0:00:03]} 41. Nfd2 {[%clk 0:00:06]}  Rd8 {[%clk 0:00:02]} 42. Rg4 {[%clk 0:00:03]}  Rd5 {[%clk 0:00:02]} 43. a6 {[%clk 0:00:03]}  Ra2 {[%clk 0:00:02]} 44. Rxb4 {[%clk 0:00:02]}  Rxa6 {[%clk 0:00:03]} 45. Rg4 {[%clk 0:00:03]}  Ra2 {[%clk 0:00:03]} 46. Nf3 {[%clk 0:00:03]}  Rd1+ {[%clk 0:00:02]} 47. Kh2 {[%clk 0:00:03]}  Rb1 {[%clk 0:00:02]} 48. Nbd4 {[%clk 0:00:04]}  Rb4 {[%clk 0:00:02]} 49. Nf5 {[%clk 0:00:03]}  Rxg4 {[%clk 0:00:02]} 50. hxg4 {[%clk 0:00:04]}  Kf7 {[%clk 0:00:02]} 51. Kg3 {[%clk 0:00:04]}  Kf6 {[%clk 0:00:03]} 52. Ne3 {[%clk 0:00:05]}  Ra5 {[%clk 0:00:03]} 53. Nf1 {[%clk 0:00:05]}  g5 {[%clk 0:00:03]} 54. N1d2 {[%clk 0:00:05]}  Ra4 {[%clk 0:00:03]} 55. Nb1 {[%clk 0:00:05]}  Rc4 {[%clk 0:00:03]} 56. Nbd2 {[%clk 0:00:05]}  Ra4 {[%clk 0:00:04]} 57. Nh2 {[%clk 0:00:05]}  Ra3+ {[%clk 0:00:04]} 58. Ndf3 {[%clk 0:00:06]}  Ra1 {[%clk 0:00:04]} 59. Kf2 {[%clk 0:00:06]}  Ra2+ {[%clk 0:00:04]} 60. Kg1 {[%clk 0:00:06]}  Ra1+ {[%clk 0:00:04]} 61. Nf1 {[%clk 0:00:07]}  Rb1 {[%clk 0:00:04]} 62. Kf2 {[%clk 0:00:07]}  Rb2+ {[%clk 0:00:04]} 63. N1d2 {[%clk 0:00:06]}  Rb4 {[%clk 0:00:05]} 64. Kg3 {[%clk 0:00:04]}  Ra4 {[%clk 0:00:05]} 1/2-1/2


[Site "https://www.chess.com"]